bitfinex-derivatives/quotes_ETHF0:USTF0_20250110
["timestamp","ask_amount","ask_price","bid_price","bid_amount"]
[1736482548469,1.252,3258.6,3258.5,3.2078]
[1736482549564,1.55892,3258.6,3258.5,3.2078]
[1736482553975,1.55892,3258.6,3258.1,40.8]
[1736482554276,0.30694,3258.4,3258.1,40.8]
[1736482554464,2.21145873,3258.5,3258.3,3.2078]
[1736482554773,1.90452873,3258.5,3258.3,3.2078]
[1736482555576,2.21145873,3258.5,3258.3,3.2078]
[1736482555969,0.30694,3258.4,3258.3,3.2078]
[1736482557768,1.90452873,3258.5,3258.1,40.8]
[1736482557971,2.21148873,3258.2,3258.1,40.8]
[1736482558472,0.30698,3258.0,3257.9,4.1163]
[1736482558672,0.30697,3258.1,3257.9,4.1163]
[1736482558871,1.90452873,3258.2,3258.0,40.8]
[1736482559074,1.90452873,3258.5,3258.0,40.8]
[1736482559271,0.30697,3258.1,3258.0,40.8]
[1736482559466,1.90452873,3258.5,3258.0,40.8]
[1736482559670,0.30696,3258.2,3258.0,40.8]
[1736482560172,0.30696,3258.3,3258.0,40.8]
[1736482560372,1.90452873,3258.5,3258.0,41.10697]
[1736482560674,1.90452873,3258.5,3258.3,3.2078]
[1736482560675,0.30694,3258.4,3258.3,3.2078]
[1736482563378,2.21146873,3258.5,3258.3,3.2078]
[1736482563679,0.30694,3258.4,3258.3,3.2078]
[1736482565875,0.30694,3258.4,3257.9,0.9085]
[1736482565876,0.30698,3258.0,3257.9,3.6433]
[1736482566068,1.90452873,3258.0,3257.4,3.6548]
[1736482566273,0.30701,3257.7,3257.5,0.4569]
[1736482566578,2.21153873,3257.7,3257.5,0.4569]
[1736482567172,1.90452873,3257.7,3257.5,0.4569]
[1736482567375,0.30702,3257.6,3257.5,0.4569]
[1736482568573,0.30703,3257.5,3257.4,3.2078]
[1736482568882,2.21153873,3257.7,3257.4,3.2078]
[1736482569175,0.30696,3258.2,3257.4,3.2078]
[1736482569376,0.30696,3258.2,3258.0,3.2078]
[1736482569579,0.30696,3258.2,3258.1,0.9296]
[1736482569775,0.30696,3258.2,3258.0,3.2078]
[1736482569776,3.15852873,3258.3,3258.0,3.2078]
[1736482569977,0.5136115,3258.2,3257.6,4.1374]
[1736482570179,2.21151873,3258.0,3257.6,4.1374]
[1736482570785,2.21151873,3258.0,3257.6,4.44441]
[1736482571171,0.30699,3257.9,3257.6,4.44441]
[1736482571377,1.90452873,3258.0,3257.6,4.44441]
[1736482571680,0.30699,3257.9,3257.6,4.44441]
[1736482571877,0.30698,3258.1,3257.7,0.307]
[1736482572082,0.30697,3258.1,3258.0,3.2078]
[1736482572581,0.899,3258.2,3257.6,1.23662]
[1736482572775,0.30699,3257.9,3257.6,4.44442]
[1736482572976,0.30698,3258.0,3257.6,4.1374]
[1736482573184,0.76926,3258.2,3257.9,0.30698]
[1736482573382,0.76926,3258.2,3258.0,3.2078]
[1736482573582,2.21147873,3258.4,3258.1,0.30697]
[1736482573885,1.90452873,3258.7,3258.5,0.30692]
[1736482574085,2.21144873,3258.7,3258.6,0.4407]
[1736482574275,1.90452873,3258.7,3258.6,0.4407]
[1736482574479,1.90452873,3258.7,3258.6,41.2407]
[1736482574884,1.90452873,3258.7,3258.6,0.4407]
[1736482575086,1.254,3258.9,3258.6,0.4407]
[1736482575475,1.56089,3258.9,3258.6,0.4407]
[1736482575873,0.30691,3258.8,3258.6,0.4407]
[1736482577085,0.30691,3258.7,3258.6,0.4407]
[1736482577279,2.21143873,3258.7,3258.6,0.4407]
[1736482577487,1.90452873,3258.7,3258.5,3.2078]
[1736482577684,0.30695,3258.3,3258.2,0.4695]
[1736482577984,0.8935,3258.6,3258.2,0.4695]
[1736482578487,1.90452873,3258.4,3258.2,0.4695]
[1736482578788,0.30695,3258.3,3258.2,0.4695]
[1736482579085,0.30696,3258.2,3258.1,3.2078]
[1736482579687,1.30531448,3258.2,3257.6,0.4347]
[1736482579886,0.30701,3257.7,3257.6,0.4347]
[1736482580686,0.30702,3257.6,3257.5,3.2078]
[1736482580890,2.21154873,3257.6,3257.5,3.2078]
[1736482581586,1.90452873,3257.6,3257.5,3.2078]
[1736482582385,2.21154873,3257.6,3257.5,3.2078]
[1736482583890,5.16365147,3257.6,3256.7,3.2078]
[1736482584082,1.90452873,3256.8,3256.7,3.6824]
[1736482584480,1.90452873,3257.1,3256.7,3.6824]
[1736482584889,2.21159873,3257.1,3256.7,3.6824]
[1736482585385,1.90452873,3257.1,3256.7,3.6824]
[1736482585585,0.30708,3257.0,3256.7,3.6824]
[1736482585890,0.30709,3256.9,3256.7,3.6824]
[1736482587392,1.90452873,3257.1,3256.7,3.6824]
[1736482587788,0.30709,3256.8,3256.7,3.6824]
[1736482588187,2.21161873,3256.8,3256.7,3.6824]
[1736482589492,1.90452873,3256.8,3256.7,3.6824]
[1736482589894,1.90452873,3257.1,3256.7,3.6824]
[1736482590099,2.21156873,3257.4,3256.9,0.30708]
[1736482590398,2.21156873,3257.4,3257.0,41.2649]
[1736482590600,1.90452873,3257.4,3257.0,41.2649]
[1736482590992,3.92403873,3257.7,3257.2,3.51485]
[1736482591199,0.30702,3257.6,3257.3,0.9466]
[1736482591592,0.30703,3257.5,3257.3,0.9466]
[1736482592099,3.61702873,3257.7,3257.3,0.9466]
[1736482592396,0.30702,3257.6,3257.3,0.9466]
[1736482592796,1.90452873,3257.4,3257.3,0.9466]
[1736482592994,2.21155873,3257.4,3257.3,0.9466]
[1736482593892,2.21155873,3257.4,3257.3,0.4695]
[1736482594304,0.30704,3257.3,3257.2,3.2078]
[1736482594595,1.90452873,3257.4,3256.8,3.2078]
[1736482594794,1.90452873,3256.9,3256.8,3.2078]
[1736482595200,1.90452873,3257.2,3256.8,3.51489]
[1736482595400,1.90452873,3257.2,3256.8,3.2078]
[1736482595599,0.30707,3257.1,3256.8,3.2078]
[1736482596196,1.90452873,3257.5,3256.8,3.2078]
[1736482596401,1.90452873,3257.5,3257.4,3.20909761]
[1736482597906,1.90452873,3257.8,3257.4,3.20909761]
[1736482598101,2.21152873,3257.8,3257.4,3.20909761]
[1736482598506,2.21152873,3257.8,3257.4,3.51612761]
[1736482598803,2.21152873,3257.8,3257.4,3.20909761]
[1736482598804,1.90452873,3257.8,3257.4,3.20909761]
[1736482599002,1.90452873,3257.5,3257.4,3.20909761]
[1736482599302,2.21154873,3257.5,3257.4,3.20909761]
[1736482599503,2.21154873,3257.5,3257.4,0.00129761]
[1736482600803,2.21154873,3257.5,3257.4,3.20909761]
[1736482601606,1.90452873,3257.5,3257.4,3.20909761]
[1736482602106,1.90452873,3257.8,3257.4,3.20909761]
[1736482602406,2.21152873,3257.8,3257.4,3.96022761]
[1736482602796,1.90452873,3257.8,3257.4,3.65319761]
[1736482603001,1.90452873,3257.8,3257.5,0.30702]
[1736482603495,1.90452873,3257.8,3257.4,3.65319761]
[1736482603700,0.30701,3257.7,3257.4,3.65319761]
[1736482603895,1.90452873,3257.8,3257.4,3.65319761]
[1736482604101,2.21152873,3257.8,3257.4,3.96022761]
[1736482604307,1.90452873,3257.8,3257.4,3.65319761]
[1736482604505,0.30701,3257.7,3257.4,3.65319761]
[1736482604706,2.21152873,3257.8,3257.4,3.96022761]
[1736482605102,0.30701,3257.7,3257.4,3.65319761]
[1736482605808,1.90452873,3257.8,3257.4,3.65319761]
[1736482606507,0.30701,3257.7,3257.4,3.65319761]
[1736482606905,0.30701,3257.7,3257.4,3.96022761]
[1736482607100,2.21152873,3257.8,3257.4,3.96022761]
[1736482607305,2.21152873,3257.8,3257.5,0.30702]
[1736482607510,2.21152873,3257.8,3257.4,3.65319761]
[1736482607511,1.90452873,3257.8,3257.4,3.65319761]
[1736482608001,0.30701,3257.7,3257.4,3.65319761]
[1736482608204,1.90452873,3257.8,3257.4,3.65319761]
[1736482608409,0.30702,3257.6,3257.4,3.65319761]
[1736482608709,0.30702,3257.6,3257.4,3.20909761]
[1736482609009,1.90452873,3257.8,3257.4,3.20909761]
[1736482609010,0.30703,3257.5,3257.4,3.20909761]
[1736482610508,0.30702,3257.6,3257.4,3.20909761]
[1736482610710,2.21155873,3257.5,3257.4,3.20909761]
[1736482611313,2.21155873,3257.5,3256.6,3.2078]
[1736482611314,1.95585349,3257.5,3256.6,3.2078]
[1736482611614,0.76755,3257.6,3256.4,0.4435]
[1736482611615,0.30711,3256.6,3256.4,0.4435]
[1736482611813,1.90452873,3256.7,3256.4,0.4435]
[1736482612016,2.21163873,3256.7,3256.4,0.4435]
[1736482612917,1.90452873,3256.7,3256.4,0.4435]
[1736482613118,1.90452873,3256.7,3256.5,0.4609]
[1736482613414,2.21162873,3256.7,3256.5,0.4609]
[1736482614517,1.90452873,3256.7,3256.5,0.4609]
[1736482614717,0.30711,3256.6,3256.5,0.4609]
[1736482615019,1.90452873,3256.7,3256.4,0.4435]
[1736482615221,0.30712,3256.5,3256.4,0.4435]
[1736482615422,0.30711,3256.6,3256.4,0.4435]
[1736482615919,0.30712,3256.5,3256.4,0.4435]
[1736482616120,1.90452873,3256.7,3256.4,0.4435]
[1736482616327,0.30712,3256.5,3256.4,0.4435]
[1736482618122,1.90452873,3256.7,3256.3,0.4786]
[1736482618325,2.21165873,3256.4,3256.3,0.4786]
[1736482619822,0.30726,3255.1,3254.9,3.2078]
[1736482620124,1.90452873,3255.0,3254.8,3.2078]
[1736482620314,1.90452873,3255.0,3254.8,3.6785]
[1736482620514,0.30721,3255.6,3255.1,0.30725]
[1736482620725,1.90452873,3256.2,3255.5,3.2078]
[1736482620920,0.30716,3256.1,3255.9,3.2078]
[1736482621417,1.90452873,3256.2,3256.0,40.8]
[1736482622622,0.30716,3256.1,3256.0,40.8]
[1736482622821,0.74366,3256.1,3256.0,40.8]
[1736482623828,0.30717,3256.0,3255.9,3.2078]
[1736482624922,3.2078,3256.6,3255.9,3.2078]
[1736482624923,3.2078,3257.0,3255.9,3.2078]
[1736482625117,1.90452873,3256.7,3256.4,0.30713]
[1736482625321,1.90452873,3256.7,3256.5,1.20952]
[1736482625521,1.90452873,3257.0,3256.6,0.30711]
[1736482625730,1.90452873,3257.0,3256.9,3.2078]
[1736482626020,5.11232873,3257.0,3255.9,3.2078]
[1736482626222,1.27,3257.6,3254.4,24.65790242]
[1736482626223,2.21167873,3256.2,3256.1,0.4411]
[1736482626426,1.90452873,3256.2,3256.1,0.4411]
[1736482626930,2.21167873,3256.2,3256.1,41.2411]
[1736482627430,1.90452873,3256.2,3256.1,41.2411]
[1736482627621,1.90452873,3256.2,3256.1,41.54826]
[1736482627822,1.90452873,3256.5,3256.2,0.30714]
[1736482628117,0.30713,3256.4,3256.1,41.2411]
[1736482628422,1.90452873,3256.2,3256.1,41.2411]
[1736482628927,1.90452873,3256.2,3256.1,0.4411]
[1736482629523,2.21167873,3256.2,3256.1,0.4411]
[1736482629717,1.90452873,3256.2,3256.0,0.47]
[1736482629925,0.3072,3255.7,3255.6,0.8926]
[1736482630616,5.11232873,3255.9,3255.3,0.4559]
[1736482630825,2.21173873,3255.5,3255.4,0.8835]
[1736482632028,5.11232873,3255.5,3254.8,3.2078]
[1736482632229,0.76799,3255.8,3254.9,0.4497]
[1736482632230,0.30726,3255.0,3254.9,0.4497]
[1736482633424,3.2078,3255.1,3254.3,0.8708]
[1736482633623,1.90452873,3254.5,3254.4,0.4755]
[1736482634529,1.90452873,3254.5,3254.4,0.78282]
[1736482634825,1.90452873,3254.8,3254.5,0.3073]
[1736482635127,1.90452873,3254.8,3254.6,0.30729]
[1736482635927,1.90452873,3254.8,3254.4,0.4755]
[1736482635928,1.90452873,3254.8,3254.7,40.8]
[1736482636224,2.21180873,3254.8,3254.7,40.8]
[1736482636424,1.90452873,3254.8,3254.7,40.8]
[1736482636821,2.21180873,3254.8,3254.7,40.8]
[1736482637027,1.95589753,3254.8,3253.8,3.2078]
[1736482637225,3.51512,3254.4,3254.0,0.30735]
[1736482637427,0.30733,3254.3,3254.1,0.4328]
[1736482637628,3.2078,3254.4,3254.1,0.4328]
[1736482637829,3.51512,3254.4,3254.1,0.4328]
[1736482638032,0.30733,3254.3,3254.1,0.4328]
[1736482638233,3.2078,3254.4,3254.1,0.4328]
[1736482638731,0.30733,3254.3,3254.1,0.4328]
[1736482639228,3.51512,3254.4,3254.1,0.4328]
[1736482639635,3.51512,3254.4,3254.1,0.8839]
[1736482639829,3.2078,3254.4,3254.1,0.8839]
[1736482640036,1.90452873,3254.5,3254.2,0.30734]
[1736482640330,1.90452873,3254.5,3254.1,0.8839]
[1736482640535,2.21180873,3254.8,3254.1,0.8839]
[1736482640729,0.30729,3254.7,3254.3,0.30733]
[1736482641033,2.21180873,3254.8,3254.3,0.30733]
[1736482641233,0.30729,3254.7,3254.3,0.30733]
[1736482641435,0.30729,3254.7,3254.2,0.30734]
[1736482641931,1.90452873,3254.5,3254.1,1.19124]
[1736482642137,1.90452873,3254.5,3254.1,0.8839]
[1736482642933,1.90452873,3254.5,3254.3,0.30732]
[1736482643140,1.90452873,3254.5,3254.2,0.30733]
[1736482643540,1.90452873,3254.5,3254.2,0.30734]
[1736482644038,1.90452873,3254.8,3254.2,3.2078]
[1736482644240,1.90452873,3254.8,3254.5,0.3073]
[1736482644441,1.90452873,3254.8,3254.6,0.4766]
[1736482644643,1.90452873,3254.8,3254.7,0.4416]
[1736482645344,1.90452873,3255.4,3255.1,0.30724]
[1736482645538,1.90452873,3255.4,3254.7,0.9038]
[1736482645737,1.90452873,3255.4,3255.2,0.30724]
[1736482645944,1.90452873,3255.4,3255.3,0.4587]
[1736482647640,2.21174873,3255.4,3255.3,0.4587]
[1736482647845,1.90452873,3255.4,3255.3,0.4587]
[1736482648745,2.21174873,3255.4,3255.3,0.4587]
[1736482648946,1.90452873,3255.4,3255.3,0.4587]
[1736482649445,2.21174873,3255.4,3255.3,0.4587]
[1736482649639,1.90452873,3255.4,3255.3,0.4587]
[1736482650146,2.21174873,3255.4,3255.3,0.4587]
[1736482651841,1.90452873,3255.4,3255.3,0.4587]
[1736482652442,2.21174873,3255.4,3255.3,0.4587]
[1736482653243,1.90452873,3255.4,3255.3,0.4587]
[1736482653946,2.21174873,3255.4,3255.3,0.4587]
[1736482655345,2.21174873,3255.4,3255.0,0.30726]
[1736482655547,2.21174873,3255.4,3255.1,0.30725]
[1736482656146,0.30723,3255.3,3255.0,0.30726]
[1736482656650,0.30723,3255.3,3254.8,0.4402]
[1736482656852,1.90452873,3255.4,3255.2,0.30724]
[1736482657056,3.2078,3255.7,3255.5,0.30721]
[1736482657247,3.2078,3255.7,3255.0,3.2078]
[1736482657248,3.2078,3255.7,3255.6,0.7474]
[1736482657642,1.90452873,3256.3,3255.6,0.4402]
[1736482657947,1.90452873,3256.3,3255.7,0.4551]
[1736482658147,1.90452873,3256.3,3255.8,0.4633]
[1736482658345,2.21166873,3256.3,3256.0,0.30716]
[1736482658753,1.90452873,3256.3,3255.9,0.30718]
[1736482659244,1.90452873,3256.3,3255.8,0.77048]
[1736482659245,0.30715,3256.2,3255.8,0.77048]
[1736482659446,5.11232873,3256.0,3255.6,0.4402]
[1736482659648,5.11232873,3256.0,3255.2,0.9288]
[1736482659649,1.90452873,3255.7,3255.2,0.9288]
[1736482659854,0.3072,3255.6,3255.3,0.30723]
[1736482660256,0.30721,3255.5,3255.2,1.68984]
[1736482660452,1.90452873,3255.7,3255.2,1.3826]
[1736482660759,0.30721,3255.6,3255.3,0.30723]
[1736482660954,0.3072,3255.6,3255.2,1.68983]
[1736482661254,0.30722,3255.5,3255.2,1.68983]
[1736482662251,1.90452873,3255.7,3255.2,1.3826]
[1736482662450,0.30721,3255.6,3255.3,0.30723]
[1736482662651,0.30719,3255.8,3255.5,0.30721]
[1736482663253,1.7495,3255.9,3255.2,1.3826]
[1736482663455,0.3072,3255.7,3255.4,0.30722]
[1736482663653,0.3072,3255.7,3255.2,1.3826]
[1736482663953,0.3072,3255.7,3255.5,0.30721]
[1736482664549,1.7495,3255.9,3255.5,0.30721]
[1736482664750,1.90452873,3255.7,3255.2,1.3826]
[1736482665456,0.30721,3255.6,3255.4,0.30722]
[1736482666156,1.90452873,3255.7,3255.4,0.30722]
[1736482666346,0.30721,3255.6,3255.4,0.30722]
[1736482668665,3.51501,3255.6,3255.2,1.3826]
[1736482669163,3.51501,3255.6,3255.3,0.30722]
[1736482669463,3.51501,3255.6,3255.4,0.30722]
[1736482669664,3.2078,3255.6,3255.4,0.30722]
[1736482670364,3.2078,3255.6,3254.1,1.274]
[1736482670365,3.2078,3255.6,3254.4,3.2078]
[1736482670560,3.2078,3255.2,3254.7,0.4417]
[1736482670757,1.90452873,3255.0,3254.8,0.30727]
[1736482671864,2.21178873,3255.0,3254.8,0.30727]
[1736482673560,2.21178873,3255.0,3254.7,0.74898]
[1736482673759,3.2078,3255.2,3254.7,0.4417]
[1736482673961,3.2078,3255.2,3255.1,0.30725]
[1736482674763,3.2078,3255.2,3254.7,0.4417]
[1736482674960,3.2078,3255.2,3255.0,0.30726]
[1736482676968,3.2078,3255.2,3254.9,0.30726]
[1736482678569,3.2078,3255.2,3254.7,0.4417]
[1736482678770,3.2078,3255.2,3255.0,0.30726]
[1736482679565,3.2078,3255.2,3254.7,0.4417]
[1736482679765,3.51505,3255.2,3254.8,0.30728]
[1736482679973,0.30725,3255.1,3254.8,0.30728]
[1736482680268,0.30725,3255.1,3254.7,0.4417]
[1736482680469,3.51505,3255.2,3254.8,0.30727]
[1736482682776,3.99045,3255.2,3254.8,0.30727]
[1736482683375,0.30725,3255.1,3254.8,0.30727]
[1736482683875,3.6832,3255.2,3254.7,0.4417]
[1736482684078,3.2078,3255.2,3255.0,0.30726]
[1736482684376,3.2078,3255.2,3254.9,0.30727]
[1736482684676,3.2078,3255.6,3254.8,3.97601]
[1736482684876,5.41953873,3255.6,3255.2,0.30724]
[1736482685078,5.41953873,3255.6,3255.3,0.76793]
[1736482685374,5.41953873,3255.6,3255.3,0.4607]
[1736482685773,0.30722,3255.5,3255.3,0.4607]
[1736482685973,5.11232873,3255.6,3254.8,3.2078]
[1736482686170,1.90452873,3255.3,3254.8,3.94667]
[1736482686370,0.30725,3255.2,3254.8,3.94667]
[1736482686672,0.78045,3255.2,3254.8,3.94667]
[1736482686973,0.4732,3255.2,3254.8,3.6394]
[1736482687270,0.30727,3254.9,3254.8,0.4316]
[1736482687466,0.30727,3255.0,3254.8,0.4316]
[1736482687873,4.1491,3255.2,3254.8,0.4316]
[1736482688176,0.30725,3255.1,3254.8,0.4316]
[1736482688377,1.90452873,3255.0,3254.7,2.918]
[1736482688669,0.3073,3254.6,3254.4,3.2078]
[1736482688872,1.27,3255.1,3254.2,0.30733]
[1736482688873,0.30731,3254.5,3254.2,40.8]
[1736482689269,0.3073,3254.6,3254.2,41.10733]
[1736482689466,5.11232873,3254.7,3254.2,40.8]
[1736482689667,5.41961873,3254.7,3254.3,0.30732]
[1736482690176,0.3073,3254.6,3254.3,0.30732]
[1736482690470,5.11232873,3254.7,3254.2,40.8]
[1736482690670,5.41961873,3254.7,3254.2,40.8]
[1736482690874,5.11232873,3254.7,3254.2,40.8]
[1736482691177,5.11232873,3254.7,3254.4,0.30732]
[1736482691476,5.11232873,3254.7,3254.5,0.4375]
[1736482691675,5.41962873,3254.7,3254.6,0.4396]
[1736482693178,5.11232873,3254.7,3254.6,0.4396]
[1736482693674,3.2078,3254.7,3254.6,0.4396]
[1736482693881,3.2078,3254.7,3254.6,0.7469]
[1736482695085,0.30725,3255.1,3254.8,0.30727]
[1736482695776,1.90452873,3255.3,3254.9,0.30726]
[1736482695983,0.30724,3255.2,3255.0,0.30726]
[1736482696184,2.21175873,3255.3,3255.1,0.30725]
[1736482696376,2.21175873,3255.3,3255.2,0.4366]
[1736482697884,1.90452873,3255.3,3255.2,0.4366]
[1736482701783,3.51503,3255.4,3255.2,0.4366]
[1736482701784,3.2078,3255.4,3255.2,0.4366]
[1736482701995,3.2078,3255.4,3255.3,0.30723]
[1736482702682,3.2078,3255.4,3255.3,1.21403]
[1736482703974,0.4497,3256.0,3255.3,4.1146]
[1736482704181,3.2078,3256.2,3255.9,0.30718]
[1736482704385,5.11232873,3256.2,3256.0,0.4589]
[1736482704578,5.56202873,3256.2,3256.0,0.4589]
[1736482705087,5.56202873,3256.2,3256.0,0.76606]
[1736482705787,3.6575,3256.2,3256.0,0.76606]
[1736482706288,3.2078,3256.8,3256.1,3.2078]
[1736482706486,3.2078,3256.8,3256.6,0.30711]
[1736482706692,3.2078,3256.8,3256.5,0.30711]
[1736482706982,3.2078,3256.8,3256.6,0.4724]
[1736482707593,5.41942873,3256.8,3256.6,0.4724]
[1736482707785,0.3071,3256.7,3256.6,0.4724]
[1736482708587,5.41942873,3256.8,3256.6,0.4724]
[1736482708789,5.11232873,3256.8,3256.6,0.4724]
[1736482709391,5.41941873,3256.8,3256.6,0.4724]
[1736482710291,5.11232873,3256.8,3256.6,0.4724]
[1736482710485,5.41941873,3256.8,3256.6,0.4724]
[1736482711495,3.2078,3256.8,3256.6,0.4724]
[1736482712187,3.2078,3256.8,3256.7,0.3071]
[1736482712393,3.2078,3256.8,3256.7,1.2124]
[1736482712696,3.2078,3256.8,3256.7,0.9053]
[1736482715092,0.30708,3256.9,3256.7,0.9053]
[1736482716096,0.30708,3257.0,3256.7,0.9053]
[1736482720787,0.30708,3256.9,3256.7,0.9053]
[1736482720989,0.30708,3257.0,3256.7,0.9053]
[1736482722401,5.41939873,3257.1,3256.7,0.9053]
[1736482722602,5.11232873,3257.1,3256.8,0.30709]
[1736482723100,5.41938873,3257.1,3256.8,0.30709]
[1736482723701,0.30707,3257.0,3256.7,0.9053]
[1736482723900,0.30707,3257.0,3256.7,1.2124]
[1736482724793,5.41939873,3257.1,3256.7,1.2124]
[1736482725398,5.11232873,3257.1,3256.7,1.2124]
[1736482725603,0.30707,3257.0,3256.7,1.2124]
[1736482725998,0.30707,3257.0,3256.7,0.9053]
[1736482726595,0.30707,3257.0,3256.6,0.3071]
[1736482726799,0.30707,3257.0,3254.0,2.918]
[1736482726800,3.2078,3256.7,3255.7,0.8788]
[1736482727003,0.4707,3256.6,3255.9,0.30717]
[1736482727302,0.30715,3256.3,3256.0,41.10716]
[1736482727808,0.30715,3256.3,3256.0,0.30716]
[1736482728306,0.30715,3256.3,3256.1,0.4736]
[1736482729298,0.30715,3256.3,3256.1,0.78076]
[1736482730010,0.9253,3256.6,3256.1,0.78076]
[1736482730511,0.30713,3256.4,3256.1,0.78076]
[1736482731605,0.30713,3256.4,3256.2,0.30714]
[1736482731800,0.30713,3256.4,3256.3,0.9026]
[1736482732908,3.2078,3256.7,3256.3,1.20973]
[1736482732909,3.51491,3256.7,3256.3,1.20973]
[1736482733107,3.2078,3256.7,3256.3,0.9026]
[1736482733313,0.30711,3256.6,3256.3,0.9026]
[1736482735220,0.30712,3256.5,3256.3,0.9026]
[1736482737414,8.3018,3256.7,3256.3,0.9026]
[1736482737415,3.2078,3256.7,3256.3,0.9026]
[1736482737616,0.30713,3256.5,3256.3,0.9026]
[1736482737915,3.2078,3256.7,3256.3,0.9026]
[1736482738104,3.5149,3256.7,3256.4,0.30713]
[1736482738305,3.5149,3256.7,3256.3,1.20973]
[1736482738507,0.30712,3256.6,3256.3,0.9026]
[1736482738709,0.30712,3256.5,3256.3,0.9026]
[1736482741204,0.30711,3256.6,3256.3,1.20973]
[1736482742208,3.2078,3256.7,3256.3,0.9026]
[1736482742408,3.2078,3256.7,3256.6,0.30711]
[1736482743813,0.30708,3257.0,3256.6,0.30711]
[1736482744018,0.30708,3257.0,3256.7,0.3071]
[1736482744313,3.6867,3257.1,3256.8,0.4316]
[1736482744516,0.78381,3257.7,3256.9,0.8885]
[1736482744716,0.4768,3257.7,3256.9,0.8885]
[1736482745116,0.78381,3257.7,3257.3,0.30704]
[1736482745417,0.78381,3257.7,3257.4,0.4403]
[1736482745618,0.78381,3257.7,3257.5,0.4398]
[1736482745819,0.4768,3257.7,3257.5,0.74682]
[1736482746018,0.307,3257.8,3257.5,0.4398]
[1736482746417,6.37032873,3257.9,3257.5,0.8885]
[1736482746622,0.4768,3257.7,3257.5,0.8885]
[1736482746822,0.78381,3257.7,3257.5,0.8885]
[1736482747323,4.4658,3257.9,3257.5,0.8885]
[1736482747524,3.2078,3257.9,3257.6,0.30701]
[1736482748524,3.51479,3257.9,3257.5,1.19552]
[1736482749614,0.307,3257.8,3257.5,0.8885]
[1736482749816,0.307,3257.8,3257.5,1.19552]
[1736482750224,0.307,3257.8,3257.5,0.8885]
[1736482750425,0.30701,3257.7,3257.5,0.8885]
[1736482750630,0.30702,3257.6,3257.5,0.8885]
[1736482752430,0.4715,3257.8,3257.1,3.2078]
[1736482752632,3.2078,3257.3,3256.9,1.3888]
[1736482752924,0.3071,3256.8,3256.4,0.30712]
[1736482753131,0.3071,3256.8,3256.5,0.30712]
[1736482753329,0.3071,3256.8,3256.4,1.69582]
[1736482754125,3.51488,3256.9,3256.6,0.3071]
[1736482754328,3.2078,3256.9,3256.4,1.3887]
[1736482754531,0.3071,3256.8,3256.5,0.30711]
[1736482754931,3.51489,3256.9,3256.6,0.3071]
[1736482755124,3.2078,3256.9,3256.4,1.3887]
[1736482755332,3.2078,3256.9,3256.7,0.3071]
[1736482755523,3.2078,3256.9,3256.4,1.3887]
[1736482755524,3.2078,3256.9,3256.6,0.3071]
[1736482756133,3.2078,3256.9,3256.7,0.3071]
[1736482756334,3.51488,3256.9,3256.6,0.30711]
[1736482756732,0.30708,3256.9,3256.6,0.30711]
[1736482756937,3.51488,3256.9,3256.6,0.30711]
[1736482757332,3.51488,3256.9,3256.4,1.3887]
[1736482757535,0.30708,3256.9,3256.7,0.3071]
[1736482757737,3.2078,3256.9,3256.7,0.3071]
[1736482758630,3.51488,3256.9,3256.6,0.3071]
[1736482758832,3.51488,3256.9,3256.7,0.3071]
[1736482760742,0.30708,3256.9,3256.7,0.3071]
[1736482760941,3.51488,3256.9,3256.7,0.3071]
[1736482761144,3.2078,3256.9,3256.7,0.3071]
[1736482761444,3.51488,3256.9,3256.7,0.3071]
[1736482762246,0.30709,3256.8,3256.6,0.30711]
[1736482762542,3.2078,3256.9,3256.4,1.3887]
[1736482762741,0.30712,3256.5,3256.4,1.3887]
[1736482762940,3.2078,3256.9,3256.4,1.3887]
[1736482763131,3.2078,3256.9,3256.5,0.30711]
[1736482763338,0.30711,3256.6,3256.4,1.69582]
[1736482763839,0.3071,3256.7,3256.5,0.30712]
[1736482764348,0.30709,3256.8,3256.6,0.30711]
[1736482764540,0.30709,3256.8,3256.4,1.3887]
[1736482764844,3.2078,3256.9,3256.4,1.3887]
[1736482765045,3.51489,3256.9,3256.7,0.3071]
[1736482765848,3.2078,3256.9,3256.8,0.30709]
[1736482766439,3.51489,3256.9,3256.7,0.3071]
[1736482766747,3.51489,3256.9,3256.6,0.3071]
[1736482766748,0.30709,3256.8,3256.6,0.3071]
[1736482767043,3.2078,3256.9,3256.4,1.3887]
[1736482767245,3.2078,3256.9,3256.7,0.30709]
[1736482767938,3.2078,3256.9,3256.4,1.3887]
[1736482768151,3.2078,3256.9,3256.8,0.30709]
[1736482769247,0.30705,3257.3,3257.1,0.30706]
[1736482769541,3.6764,3257.6,3257.2,0.4429]
[1736482769746,3.2078,3257.6,3257.5,0.30702]
[1736482770340,3.2078,3257.6,3257.5,41.10702]
[1736482774045,0.307,3257.8,3257.6,0.30701]
[1736482774246,3.5148,3257.8,3257.6,0.30701]
[1736482774445,3.5148,3257.8,3257.5,0.30702]
[1736482774653,3.5148,3257.8,3257.6,0.30701]
[1736482775349,3.2078,3257.8,3257.3,41.7214]
[1736482775539,3.5148,3257.8,3257.6,0.30701]
[1736482775742,0.30701,3257.7,3257.2,0.74995]
[1736482775943,3.2078,3257.8,3257.2,0.4429]
[1736482776144,0.30704,3257.3,3257.2,0.4429]
[1736482776349,0.30704,3257.4,3257.2,0.4429]
[1736482776549,0.9236,3257.6,3257.1,3.2078]
[1736482776744,0.30705,3257.2,3257.1,3.2078]
[1736482777352,0.9236,3257.6,3257.1,3.2078]
[1736482777548,0.30704,3257.4,3257.1,3.51486]
[1736482777750,0.30704,3257.4,3257.2,0.4394]
[1736482778744,0.9236,3257.6,3257.2,0.4394]
[1736482779050,0.30704,3257.3,3257.1,3.2078]